bitfinex/quotes_SOLUSD_20240621
["timestamp","ask_amount","ask_price","bid_price","bid_amount"]
[1718956682908,22.0562,131.62,131.53,29.3]
[1718956683070,22.8288,131.66,131.54,68.11]
[1718956683270,20.0,131.65,131.55,0.17]
[1718956683591,20.0,131.65,131.55,23.11]
[1718956683899,22.8288,131.66,131.56,45.17]
[1718956684094,22.8288,131.66,131.56,51.6756]
[1718956684392,22.8288,131.66,131.57,20.17]
[1718956684901,22.8288,131.66,131.58,45.17]
[1718956686302,22.8288,131.66,131.57,0.17]
[1718956686599,20.0,131.65,131.54,29.13]
[1718956687173,20.0,131.65,131.53,6.045]
[1718956687174,45.0,131.64,131.53,6.045]
[1718956687393,20.0,131.63,131.52,15.8731]
[1718956687768,20.0,131.63,131.55,22.94]
[1718956688102,20.0,131.65,131.55,29.0212]
[1718956688476,20.0,131.65,131.56,45.34]
[1718956688797,20.0,131.65,131.56,68.28]
[1718956688969,20.0,131.65,131.56,74.3608]
[1718956689299,20.0,131.65,131.56,68.28]
[1718956691197,20.0,131.65,131.53,52.07]
[1718956691367,45.0,131.64,131.54,20.0]
[1718956691566,20.0,131.63,131.53,52.07]
[1718956692300,20.0,131.63,131.54,22.94]
[1718956692677,20.0,131.63,131.53,29.13]
[1718956692876,45.0,131.62,131.52,15.8731]
[1718956693098,20.0,131.61,131.52,15.8731]
[1718956693783,21.861,131.6,131.5,35.175]
[1718956693998,20.0,131.59,131.5,35.175]
[1718956694203,20.0,131.59,131.5,29.13]
[1718956694495,20.0,131.59,131.49,29.8379306]
[1718956694705,20.0,131.59,131.49,29.9439306]
[1718956695573,45.0,131.58,131.49,0.8139306]
[1718956695767,20.0,131.57,131.49,0.8139306]
[1718956695973,45.0,131.56,131.49,0.8139306]
[1718956696281,21.9452,131.54,131.49,0.8139306]
[1718956696608,20.0,131.53,131.49,0.8139306]
[1718956700220,45.0,131.52,131.49,0.8139306]
[1718956700506,20.0,131.51,131.49,0.8139306]
[1718956701107,20.0,131.53,131.49,0.8139306]
[1718956704310,21.9452,131.54,131.49,0.8139306]
[1718956704615,22.1377,131.57,131.49,0.8139306]
[1718956704991,20.0,131.56,131.49,0.8139306]
[1718956706123,22.1377,131.57,131.49,0.8139306]
[1718956706896,45.0,131.56,131.49,0.8139306]
[1718956707407,20.0,131.55,131.49,0.8139306]
[1718956707590,45.0,131.54,131.49,0.8139306]
[1718956708016,20.0,131.55,131.49,0.8139306]
[1718956708220,22.1377,131.57,131.49,0.8139306]
[1718956708221,20.0,131.56,131.49,0.8139306]
[1718956708394,45.0,131.55,131.49,0.8139306]
[1718956710721,22.1377,131.57,131.49,0.8139306]
[1718956711018,20.0,131.56,131.49,0.8139306]
[1718956712120,45.0,131.55,131.49,0.8139306]
[1718956712323,20.0,131.54,131.49,0.8139306]
[1718956713319,20.0,131.56,131.49,0.8139306]
[1718956715324,45.0,131.55,131.49,0.8139306]
[1718956715528,20.0,131.54,131.49,0.8139306]
[1718956716407,20.0,131.56,131.49,0.8139306]
[1718956717418,20.0,131.56,131.49,29.7776306]
[1718956717628,255.1,131.6,131.5,113.39847685]
[1718956717921,21.4008,131.61,131.51,20.0]
[1718956718440,21.4008,131.61,131.52,29.1327]
[1718956718721,29.13,131.64,131.53,7.83441596]
[1718956718722,21.6142,131.64,131.53,7.83441596]
[1718956718918,21.6142,131.64,131.54,24.52981128]
[1718956719114,20.0,131.63,131.55,46.98968586]
[1718956719422,21.6142,131.64,131.55,1.64968586]
[1718956719623,21.6142,131.64,131.54,35.9458]
[1718956719842,21.6142,131.64,131.54,35.7758]
[1718956720434,45.0,131.63,131.54,6.6458]
[1718956720948,20.0,131.62,131.54,6.6458]
[1718956721517,20.0,131.62,131.52,29.3]
[1718956721729,20.0,131.62,131.52,29.13]
[1718956721940,45.0,131.61,131.52,29.13]
[1718956722111,20.0,131.6,131.52,52.01]
[1718956722439,20.0,131.62,131.53,0.17]
[1718956722727,20.0,131.62,131.54,28.9617]
[1718956722918,20.0,131.63,131.55,45.17]
[1718956723114,20.0,131.63,131.53,35.2119]
[1718956723320,20.0,131.63,131.54,45.34]
[1718956723718,255.1,131.65,131.56,15.5111]
[1718956724031,20.0,131.64,131.56,15.5111]
[1718956724205,21.836,131.67,131.56,15.5111]
[1718956724842,21.836,131.67,131.57,0.17]
[1718956725028,21.836,131.67,131.58,6.6143]
[1718956725422,20.0,131.66,131.58,6.6143]
[1718956725740,20.0,131.66,131.59,0.17]
[1718956725917,20.0,131.7,131.58,6.6143]
[1718956726617,100.0,131.69,131.58,6.6143]
[1718956726826,20.0,131.68,131.58,6.6143]
[1718956727341,45.0,131.67,131.56,15.5111]
[1718956727544,20.0,131.66,131.56,15.5111]
[1718956727718,45.0,131.65,131.56,15.5111]
[1718956727915,20.0,131.64,131.56,15.5111]
[1718956729542,42.8037,131.64,131.54,6.206]
[1718956729752,45.0,131.63,131.54,6.206]
[1718956729929,20.0,131.62,131.54,6.206]
[1718956730122,45.0,131.61,131.54,6.206]
[1718956730440,20.0,131.6,131.53,16.2871]
[1718956731127,22.8037,131.64,131.54,22.88]
[1718956731333,22.8037,131.64,131.53,22.3689]
[1718956731334,20.0,131.63,131.53,22.3689]
[1718956731639,20.0,131.63,131.53,16.2871]
[1718956732428,45.0,131.62,131.53,16.2871]
[1718956732828,20.0,131.61,131.53,16.2871]
[1718956734846,22.8037,131.64,131.54,51.2517]
[1718956735058,45.0,131.63,131.53,39.1671]
[1718956735238,20.0,131.62,131.53,16.2871]
[1718956736235,45.0,131.61,131.53,16.2871]
[1718956736434,20.0,131.6,131.53,16.2871]
[1718956736927,20.0,131.63,131.53,16.2871]
[1718956737132,20.0,131.63,131.53,39.1671]
[1718956737354,20.0,131.63,131.53,16.2871]
[1718956738489,45.0,131.62,131.53,16.2871]
[1718956738927,20.0,131.61,131.53,16.2871]
[1718956739125,45.0,131.6,131.53,16.2871]
[1718956739333,20.0,131.59,131.5,6.206]
[1718956740253,20.0,131.59,131.5,12.2893]
[1718956740428,20.0,131.59,131.5,64.2992]
[1718956740637,22.8037,131.64,131.52,6.0823]
[1718956740834,20.0,131.63,131.53,42.88]
[1718956741063,22.8037,131.64,131.53,42.88]
[1718956741358,22.8037,131.64,131.51,22.88]
[1718956741648,22.8037,131.64,131.52,65.34]
[1718956742266,65.0,131.63,131.52,65.34]
[1718956742568,65.0,131.63,131.52,20.17]
[1718956743478,20.0,131.63,131.52,43.05]
[1718956743641,255.1,131.65,131.54,58.0914]
[1718956743841,22.2214,131.67,131.55,94.3011]
[1718956744359,22.2214,131.67,131.55,88.22]
[1718956745041,22.2214,131.67,131.56,22.88]
[1718956745374,20.0,131.66,131.58,21.8473]
[1718956745543,261.6618,131.7,131.58,21.8473]
[1718956745544,20.0,131.69,131.58,21.8473]
[1718956745744,20.0,131.69,131.59,57.9131]
[1718956745945,276.7789,131.7,131.59,57.9131]
[1718956745946,255.1,131.7,131.6,49.13]
[1718956746171,22.4082,131.73,131.61,23.22]
[1718956746353,22.4082,131.73,131.61,29.2984]
[1718956746553,22.4082,131.73,131.63,29.13]
[1718956746871,255.1,131.75,131.64,15.7486]
[1718956747173,255.17454058,131.75,131.6,87.7586]
[1718956747476,4.760133,131.74,131.61,45.34]
[1718956747638,4.760133,131.74,131.6,35.7486]
[1718956747843,29.13,131.74,131.6,15.7486]
[1718956748045,4.760133,131.72,131.6,15.7486]
[1718956748272,45.0,131.71,131.6,15.7486]
[1718956748445,20.0,131.7,131.6,15.7486]
[1718956748643,45.0,131.69,131.6,15.7486]
[1718956748841,20.0,131.68,131.61,0.17]
[1718956749059,20.0,131.68,131.6,15.7486]
[1718956749463,20.0,131.73,131.61,45.34]
[1718956749668,45.0,131.72,131.61,74.47]
[1718956750279,20.0,131.73,131.62,42.88]
[1718956750280,20.0,131.71,131.62,42.88]
[1718956750483,255.1,131.75,131.63,30.64481389]
[1718956750648,22.4082,131.76,131.62,20.0]
[1718956750990,22.4082,131.76,131.66,6.0762]
[1718956751284,22.4082,131.76,131.65,1.51784007]
[1718956751853,20.0,131.75,131.66,16.464]
[1718956752056,20.0,131.75,131.67,1.51760951]
[1718956752463,20.0,131.75,131.67,30.64760951]
[1718956752669,255.1,131.79,131.68,1.85749426]
[1718956752868,21.8379,131.8,131.68,1.85749426]
[1718956752869,21.8379,131.8,131.68,46.85749426]
[1718956753181,21.8379,131.8,131.68,69.73749426]
[1718956753395,21.8379,131.8,131.7,6.0743]
[1718956753673,6.4592,131.8,131.71,6.4511]
[1718956754052,6.4592,131.8,131.71,6.2811]
[1718956755066,20.0,131.79,131.71,6.2811]
[1718956755588,20.0,131.82,131.71,6.2811]
[1718956755789,20.0,131.82,131.72,0.17]
[1718956756085,20.0,131.82,131.71,6.2811]
[1718956756877,29.13,131.8,131.71,6.2811]
[1718956757278,29.13,131.8,131.67,22.88]
[1718956757279,29.13,131.77,131.67,6.5783]
[1718956757472,65.0,131.76,131.67,6.5783]
[1718956758190,165.0,131.76,131.67,6.5783]
[1718956759089,65.0,131.76,131.67,6.5783]
[1718956759575,65.0,131.76,131.67,12.654]
[1718956759886,65.0,131.76,131.67,6.5783]
[1718956760098,65.0,131.76,131.66,16.464]
[1718956760099,71.1401,131.76,131.66,16.464]
[1718956760303,100.0,131.75,131.63,6.2486]
[1718956760486,65.0,131.74,131.63,6.2486]
[1718956761065,165.0,131.74,131.63,6.2486]
[1718956763477,65.0,131.74,131.63,6.2486]
[1718956763672,165.0,131.74,131.63,6.2486]
[1718956763891,265.0,131.74,131.63,6.2486]
[1718956764088,200.0,131.72,131.63,6.2486]
[1718956764293,65.0,131.71,131.63,6.2486]
[1718956765499,20.0,131.71,131.63,29.1286]
[1718956765678,6.1401,131.76,131.63,35.2061]
[1718956766097,258.25620592,131.77,131.66,16.3172]
[1718956766279,255.1,131.77,131.66,16.3172]
[1718956768201,20.0,131.76,131.66,16.3172]
[1718956768703,20.0,131.76,131.67,6.4973]
[1718956768878,20.0,131.76,131.67,74.3773]
[1718956769073,20.0,131.76,131.67,6.3273]
[1718956770400,20.0,131.79,131.67,6.3273]
[1718956770710,45.0,131.78,131.67,6.3273]
[1718956770899,20.0,131.77,131.67,6.3273]
[1718956771208,45.0,131.76,131.67,6.3273]
[1718956771393,20.0,131.75,131.67,6.3273]
[1718956772107,20.0,131.75,131.69,15.822]
[1718956772283,20.0,131.8,131.69,15.822]
[1718956772608,45.0,131.79,131.69,15.822]
[1718956772901,20.0,131.78,131.69,15.822]
[1718956774893,3.15620592,131.81,131.69,15.822]
[1718956775398,100.0,131.78,131.69,15.822]
[1718956775594,20.0,131.77,131.69,15.822]
[1718956776021,45.0,131.76,131.69,15.822]
[1718956776222,20.0,131.75,131.69,15.822]
[1718956776508,45.0,131.74,131.69,15.822]
[1718956776815,20.0,131.73,131.63,6.6548]
[1718956777115,20.0,131.73,131.62,15.1092]
[1718956777116,100.0,131.72,131.62,15.1092]
[1718956777322,6.0071,131.69,131.6,6.6548]
[1718956777488,65.0,131.68,131.6,6.6548]
[1718956778997,100.0,131.67,131.58,15.1092]
[1718956779281,65.0,131.66,131.58,15.1092]
[1718956780187,65.0,131.66,131.57,6.3534]
[1718956780409,65.0,131.66,131.54,22.978]
[1718956780585,100.0,131.65,131.54,22.978]
[1718956780783,65.0,131.64,131.54,22.978]
[1718956785215,20.0,131.64,131.54,22.978]
[1718956785423,20.0,131.68,131.54,22.978]
[1718956785631,120.0,131.68,131.55,45.34]
[1718956786511,20.0,131.68,131.55,68.22]
[1718956786818,6.0071,131.69,131.56,22.88]
[1718956787008,15.2151,131.71,131.58,22.88]
[1718956787210,15.2151,131.71,131.6,6.0649]
[1718956787414,6.2376,131.73,131.61,16.0166]
[1718956787604,6.2376,131.73,131.62,0.17]
[1718956787809,6.2906,131.77,131.62,94.298]
[1718956788112,6.2906,131.77,131.63,28.9574]
[1718956788323,6.2906,131.77,131.64,68.22]
[1718956788505,24.76614008,131.79,131.64,68.05]
[1718956788701,24.76614008,131.79,131.65,0.17]
[1718956788895,9.17134008,131.79,131.66,29.373]
[1718956789098,109.76780592,131.81,131.66,6.493]
[1718956789396,100.0,131.8,131.66,6.493]
[1718956790303,45.0,131.79,131.66,6.493]
[1718956790904,245.0,131.79,131.66,6.493]
[1718956791221,100.0,131.77,131.66,6.493]
[1718956791402,65.0,131.76,131.66,6.493]
[1718956793707,65.0,131.76,131.62,6.2811]
[1718956793909,65.0,131.76,131.63,68.22]
[1718956794115,20.0,131.76,131.65,22.88]
[1718956794309,20.0,131.78,131.66,68.22]
[1718956794522,20.0,131.8,131.68,22.88]
[1718956794826,20.0,131.8,131.69,61.5513]
[1718956795613,20.0,131.8,131.69,16.2113]
[1718956796831,145.0,131.79,131.63,6.0775]
[1718956796998,20.0,131.78,131.65,15.9233]
[1718956797201,45.0,131.77,131.66,45.34]
[1718956797420,20.0,131.76,131.66,45.0]
[1718956797626,45.0,131.75,131.65,15.9233]
[1718956797824,20.0,131.74,131.65,15.9233]
[1718956798129,45.0,131.73,131.65,15.9233]
[1718956798327,20.0,131.72,131.65,15.9233]
[1718956799510,20.0,131.72,131.62,6.2811]
[1718956799711,20.0,131.72,131.62,35.2391]
[1718956800127,20.0,131.72,131.62,29.1611]
[1718956800507,20.0,131.72,131.62,35.2388]
[1718956800720,20.0,131.77,131.62,35.2388]
[1718956801029,45.0,131.76,131.63,0.17]
[1718956801329,20.0,131.75,131.63,0.34]
[1718956801532,45.0,131.74,131.63,65.34]
[1718956801707,20.0,131.73,131.63,65.34]
[1718956802913,20.0,131.73,131.63,45.34]
[1718956803637,20.0,131.73,131.63,74.2975]
[1718956803835,20.0,131.73,131.63,45.34]
[1718956804723,14.29113001,131.82,131.69,6.1926]
[1718956804911,14.29113001,131.82,131.73,28.9527]
[1718956805234,7.83623001,131.82,131.74,44.879]
[1718956805445,7.83623001,131.82,131.75,0.17]
[1718956805651,7.83623001,131.82,131.76,22.88]
[1718956805943,37.25341923,131.98,131.76,22.88]
[1718956805944,6.0248,131.92,131.78,28.9507]
[1718956806143,40.20426168,131.92,131.77,26.8108]
[1718956806347,28.43734346,131.91,131.77,26.8108]
[1718956806516,5.74211822,131.91,131.77,26.8108]
[1718956806713,5.74211822,131.91,131.77,6.8108]
[1718956806914,5.8166588,131.91,131.77,6.4708]
[1718956807146,28.43734346,131.89,131.74,60.5868]
[1718956807314,43.76410066,131.92,131.71,6.1641]
[1718956807315,28.43734346,131.83,131.71,6.1641]
[1718956807636,62.41734346,131.85,131.71,6.1641]
[1718956807838,33.98,131.85,131.71,6.1641]
[1718956808146,33.98,131.85,131.71,12.2379]
[1718956808314,20.0,131.84,131.71,6.1641]
[1718956808731,20.0,131.87,131.72,6.0731]
[1718956808934,20.0,131.87,131.71,6.1641]
[1718956809108,28.43734346,131.84,131.71,6.1641]
[1718956809314,20.14908116,131.87,131.71,6.1641]
[1718956809315,20.0,131.83,131.71,6.1641]
[1718956809552,20.0,131.83,131.71,12.2377]
[1718956809837,100.0,131.85,131.71,6.1641]
[1718956810232,65.0,131.84,131.71,6.1641]
[1718956811229,20.0,131.84,131.72,0.17]
[1718956811434,24.94767378,131.86,131.73,22.88]
[1718956811630,24.94767378,131.86,131.72,45.0]
[1718956811631,100.0,131.84,131.72,45.0]
[1718956811819,20.0,131.83,131.73,0.17]
[1718956812156,29.29781197,131.88,131.76,22.88]
[1718956812314,21.4715,131.88,131.77,45.34]
[1718956812514,120.46567156,131.93,131.78,45.7182]
[1718956812746,20.46567156,131.93,131.79,45.34]
[1718956813458,100.0,131.92,131.79,45.17]
[1718956813620,100.0,131.92,131.78,22.8382]
[1718956813818,120.46567156,131.93,131.79,0.17]
[1718956814025,120.46567156,131.93,131.79,45.17]
[1718956814435,145.0,131.92,131.79,45.17]
[1718956814751,100.0,131.92,131.79,45.17]
[1718956814954,120.46567156,131.93,131.78,22.8382]
[1718956814955,100.0,131.9,131.78,22.8382]
[1718956815148,20.0,131.89,131.78,22.8382]
[1718956815516,100.0,131.87,131.74,6.5937]
[1718956815738,100.0,131.85,131.74,6.5937]
[1718956815919,100.0,131.83,131.74,6.5937]
[1718956816239,65.0,131.82,131.65,22.271]
[1718956816621,65.0,131.82,131.66,22.88]
[1718956816825,65.0,131.82,131.7,28.9543]
[1718956817045,65.0,131.82,131.71,28.9539]
[1718956817367,65.0,131.82,131.71,22.88]
[1718956817542,65.0,131.82,131.71,28.9538]
[1718956817857,65.0,131.82,131.68,22.88]
[1718956818070,65.0,131.82,131.67,24.63685654]
[1718956818234,65.0,131.82,131.67,1.75685654]
[1718956818635,65.0,131.82,131.69,6.0746]
[1718956818834,65.0,131.82,131.68,6.0752]
[1718956819067,65.0,131.82,131.69,22.88]
[1718956819357,20.0,131.82,131.73,6.1621]
[1718956819542,120.0,131.87,131.74,45.17]
[1718956819940,20.0,131.87,131.74,45.17]
[1718956820163,20.0,131.87,131.75,15.3277]
[1718956820565,6.1938,131.89,131.75,15.3277]
[1718956820863,148.30417156,131.88,131.75,15.3277]
[1718956821263,45.0,131.87,131.75,15.3277]
[1718956821974,45.0,131.87,131.76,45.34]
[1718956822345,45.0,131.87,131.76,45.17]
[1718956822747,45.0,131.87,131.75,15.3277]
[1718956823238,20.0,131.86,131.76,45.17]
[1718956823437,20.0,131.88,131.75,15.3277]
[1718956823638,20.0,131.88,131.76,0.17]
[1718956823840,20.0,131.88,131.76,45.34]
[1718956824639,20.0,131.88,131.76,51.4115]
[1718956824839,4.94767378,131.91,131.77,42.88]
[1718956825143,4.94767378,131.91,131.78,68.22]
[1718956825658,4.94767378,131.91,131.78,74.2904]
[1718956826163,4.94767378,131.91,131.78,45.34]
[1718956826338,83.44798703,131.9,131.78,45.0]
[1718956826539,104.94767378,131.91,131.78,45.0]
[1718956826540,20.0,131.89,131.78,45.0]
[1718956826761,104.94767378,131.91,131.78,45.0]
[1718956826961,6.3367,131.93,131.75,15.3277]
[1718956826962,100.0,131.89,131.75,15.3277]
[1718956827164,20.0,131.88,131.75,15.3277]
[1718956827334,45.0,131.87,131.75,15.3277]
[1718956827666,20.0,131.86,131.76,6.0716]
[1718956827958,20.0,131.86,131.75,44.2795]
[1718956828162,20.0,131.86,131.76,0.17]
[1718956828372,20.0,131.91,131.76,65.34]
[1718956828532,20.0,131.92,131.76,94.2912]
[1718956828732,20.0,131.92,131.76,88.22]
[1718956828940,20.0,131.92,131.78,28.9504]
[1718956829136,20.0,131.92,131.79,45.34]
[1718956829659,20.0,131.92,131.79,0.34]
[1718956830245,45.0,131.91,131.79,0.34]
[1718956830448,45.0,131.91,131.79,0.17]
[1718956830449,20.0,131.9,131.79,0.17]
[1718956830650,45.0,131.89,131.79,0.34]
[1718956830866,20.0,131.88,131.79,0.34]
[1718956831463,20.0,131.93,131.79,43.22]
[1718956831662,23.0214709,131.95,131.82,15.9462]
[1718956831663,20.0,131.94,131.82,15.9462]
[1718956831842,100.0,131.91,131.82,15.9462]
[1718956832042,20.0,131.9,131.82,15.9462]
[1718956832470,132.83583332,131.94,131.82,15.9462]
[1718956832766,27.83753177,131.94,131.83,45.0]
[1718956832967,20.0,131.94,131.83,45.0]
[1718956833164,0.8139306,131.95,131.83,45.0]
[1718956833165,20.8139306,131.95,131.85,6.0744]
[1718956833374,20.0,131.94,131.85,6.0744]
[1718956833669,0.8139306,131.95,131.85,6.0744]
[1718956835461,0.8139306,131.95,131.86,0.17]
[1718956835647,0.8139306,131.95,131.85,6.0744]
[1718956835844,0.8139306,131.95,131.86,0.17]
[1718956836257,0.8139306,131.95,131.85,6.0744]
[1718956836547,20.8139306,131.95,131.85,6.0744]
[1718956836964,45.0,131.94,131.85,6.0744]
[1718956837169,20.0,131.93,131.85,6.0744]
[1718956837848,0.8139306,131.95,131.85,6.0744]
[1718956838162,45.8139306,131.95,131.85,6.0744]
[1718956838353,120.0,131.94,131.85,6.0744]
[1718956838670,100.0,131.92,131.85,6.0744]
[1718956838871,65.0,131.91,131.85,6.0744]
[1718956839456,20.0,131.91,131.85,6.0744]
[1718956839656,208.65141662,131.95,131.85,6.0744]
[1718956839657,45.0,131.9,131.85,6.0744]
[1718956839860,100.8139306,131.95,131.85,6.0744]
[1718956839861,20.0,131.89,131.85,6.0744]
[1718956840063,45.0,131.91,131.85,6.0744]
[1718956840377,0.8139306,131.95,131.85,6.0744]
[1718956841553,100.0,131.94,131.85,6.0744]
[1718956841759,65.0,131.93,131.85,6.0744]
[1718956842360,20.0,131.93,131.85,6.0744]
[1718956842559,0.8139306,131.95,131.85,6.0744]
[1718956842956,45.8139306,131.95,131.85,6.0744]
[1718956843158,0.8139306,131.95,131.85,6.0744]
[1718956844482,45.8139306,131.95,131.85,6.0744]
[1718956844856,20.0,131.94,131.85,6.0744]
[1718956846185,45.0,131.93,131.85,6.0744]
[1718956846493,20.0,131.92,131.85,6.0744]
[1718956848181,45.0,131.91,131.85,6.0744]
[1718956848477,20.0,131.9,131.85,6.0744]
[1718956848880,20.0,131.94,131.85,6.0744]
[1718956849054,45.0,131.93,131.85,6.0744]
[1718956849256,20.0,131.92,131.85,6.0744]
[1718956849657,45.0,131.93,131.85,6.0744]
[1718956849879,0.8139306,131.95,131.85,6.0744]
[1718956851275,20.8139306,131.95,131.85,6.0744]
[1718956851655,145.0,131.94,131.85,6.0744]
[1718956851972,20.0,131.93,131.85,6.0744]
[1718956852174,45.0,131.92,131.85,6.0744]
[1718956852384,20.0,131.91,131.85,6.0744]
[1718956852590,45.0,131.9,131.85,6.0744]
[1718956852771,20.0,131.89,131.85,6.0744]
[1718956853864,100.0,131.94,131.85,6.0744]
[1718956853865,20.0,131.93,131.85,6.0744]
[1718956854074,145.0,131.92,131.85,6.0744]
[1718956854275,145.0,131.92,131.82,15.9462]
[1718956854276,20.0,131.91,131.82,22.3644]
[1718956854596,45.0,131.9,131.82,22.3644]
[1718956854899,20.0,131.89,131.82,22.3644]
[1718956855093,45.0,131.88,131.82,22.3644]
[1718956855399,20.0,131.87,131.82,22.3644]
[1718956855998,45.0,131.86,131.75,22.1351]
[1718956856300,20.0,131.85,131.75,22.1351]
[1718956856474,20.0,131.85,131.76,20.0]
[1718956856675,20.0,131.85,131.76,26.0712]
[1718956856894,100.0,131.89,131.76,20.0]
[1718956857106,265.0,131.88,131.75,22.1351]
[1718956857303,245.0,131.88,131.75,22.1351]
[1718956857476,20.0,131.87,131.75,22.1351]
[1718956857676,45.0,131.86,131.75,22.1351]
[1718956857885,20.0,131.85,131.75,22.1351]
[1718956858081,45.0,131.84,131.75,22.1351]
[1718956858373,20.0,131.83,131.75,22.1351]
[1718956858798,20.0,131.84,131.75,22.1351]
[1718956859001,45.0,131.83,131.75,22.1351]
[1718956859296,20.0,131.82,131.75,22.1351]
[1718956859485,45.0,131.81,131.75,22.1351]
[1718956859797,20.0,131.8,131.75,22.1351]
[1718956861107,20.0,131.84,131.75,22.1351]
[1718956861611,45.0,131.83,131.75,22.1351]
[1718956861903,45.0,131.83,131.67,47.41685654]
[1718956861904,20.0,131.82,131.72,6.0358]
[1718956863187,20.0,131.82,131.74,15.7461]
[1718956863495,20.0,131.84,131.76,6.1614]
[1718956865298,255.1,131.85,131.76,6.1614]
[1718956865503,255.1,131.85,131.77,20.34]
[1718956865691,255.1,131.85,131.78,20.03675399]
[1718956865889,270.4752572,131.92,131.79,6.0953]
[1718956866604,275.47355875,131.92,131.79,6.0953]
[1718956867184,20.0,131.91,131.79,6.0953]
[1718956867890,20.0,131.91,131.82,15.7822]
[1718956868206,0.8139306,131.95,131.84,6.1659]
[1718956868412,0.8139306,131.95,131.85,0.34]
[1718956868589,0.8139306,131.95,131.86,15.7822]
[1718956871712,45.8139306,131.95,131.86,15.7822]
[1718956871898,20.0,131.94,131.86,15.7822]
[1718956872107,45.0,131.93,131.86,15.7822]
[1718956872308,20.0,131.92,131.86,15.7822]
[1718956873505,0.8139306,131.95,131.86,15.7822]
[1718956873701,45.8139306,131.95,131.86,15.7822]
[1718956873898,20.0,131.94,131.86,15.7822]
[1718956874498,20.8139306,131.95,131.86,15.7822]
[1718956874697,45.0,131.94,131.86,15.7822]
[1718956875014,20.0,131.93,131.86,15.7822]
[1718956875312,45.0,131.92,131.86,15.7822]
[1718956875495,20.0,131.91,131.86,15.7822]
[1718956876600,0.8139306,131.95,131.86,15.7822]
[1718956877085,45.8139306,131.95,131.86,15.7822]
[1718956877286,20.0,131.94,131.86,15.7822]
[1718956877689,45.0,131.93,131.86,15.7822]
[1718956877918,20.0,131.92,131.86,15.7822]
[1718956880793,0.8139306,131.95,131.86,15.7822]
[1718956881012,0.8139306,131.95,131.87,6.5307]
[1718956888002,20.8139306,131.95,131.87,6.5307]
[1718956892401,20.0,131.94,131.87,6.5307]
[1718956893018,0.8139306,131.95,131.87,6.5307]
[1718956893213,0.8139306,131.95,131.89,16.4079]
[1718956896819,0.8139306,131.95,131.91,6.2729]
[1718956897020,16.5377,132.05,131.92,15.3498]
[1718956897324,16.5377,132.05,131.93,0.17]
[1718956897525,16.5377,132.05,131.92,38.2298]
[1718956897702,22.78432033,132.05,131.93,0.34]
[1718956898112,22.78432033,132.05,131.92,15.3498]